{"text_format":"2","workbook":"xlsx","n_sheets":1,"sheets":["Tabelle1"],"not_rendered":{"charts":0,"images":0,"macros":0,"external_links":0,"defined_names":0,"comments":0,"pivot_tables":0},"unopened":[],"bounds":{"document_bytes":16777216,"sheet_cells":100000,"run_cost":"one","rows_first":2000,"rows_last":500,"rows_between":2000,"halvings":0,"cell_chars":16384,"cell_head_chars":4096},"cells_cut":0,"cells_raw":0,"read":"whole","date_system":"1900"}

{"sheet":"Tabelle1","index":0,"n_rows":94,"n_cols":13,"rows_kept":94,"cut":false,"hidden":false,"merged":[[88,3,88,5],[93,9,93,11]]}
["Silvesterverkauf MK-Pyrodesign 2018/19"]
[]
["Typ","Bezeichnung","Hersteller","Beschreibung","Brenndauer","Kategorie","NEM","Lagergruppe","Kommentar","Pres/Stück inkl. MwSt.","Anzahl Bestellung","Summe"]
["Anzündmittel","Elektro Zünder 100cm","Blackboxx","50 Stück",null,"T1",null,"1.4 S",null,22,null,{"$f":"K4*J4","v":0}]
["Anzündmittel","Elektrozünder 500cm","Blackboxx","25 Stück",null,"T1",null,"1.4 S",null,37,null,{"$f":"K5*J5","v":0}]
["Anzündmittel","Grüne Visco","Blackboxx","Wasserabweisend, genaue Brennzeit von ca. 30 s/m , 10m Rolle",null,"T1",20,"1.4 S",null,6.5,null,0]
["Anzündmittel","Grüne Visco","Blackboxx","Wasserabweisend, genaue Brennzeit von ca. 60 s/m , 10m Rolle",null,"T1",20,"1.4 S",null,6.5,null,0]
["Anzündmittel","Elektrozünder 300cm","Heron","25 Stück",null,"T1",null,"1.4 S",null,20,null,0]
["Anzündmittel","Anzündlitze Gelb","Wano","18 - 28 Sekunden pro Meter",null,"ZZ",null,"1.4 S",null,10.5,null,0]
["Anzündmittel","Anzündlitze Rot","Wano","8 - 12 Sekunden Meter",null,"ZZ",null,"1.4 S",null,10.5,null,{"$f":"K10*J10","v":0}]
["Anzündmittel","Tapematch 15 Meter","Zink","10 Meter pro Sekunde",null,"T1",null,"1.4 S",null,11.5,null,0]
["Batterie ","Barbarossa","Blackboxx","Wunderschöne, gigantische Buketts aus Rotflimmer und blauen Sternen mit einem Zentrum aus Titangoldpalmen, sowie Grünflimmer mit blauen Sternen und Zentrum aus Titangoldpalmen. Alle Effekte mit Goldflimmer-Schweif aufsteigend und lautem Zerlegerknall",60,"F2",463,"1.4 G",null,29.5,null,0]
["Batterie ","Blender","Blackboxx","Fächerabschuss von jeweils 4 fetten, Schweifkometen in Goldbrokat, Titangold oder Silberflimmer mit Verwandlung zu Königsbrokatkronen mit Rotflimmer, blauer Päonie mit Grünflimmer und Titanpalmenzentrum, sowie Silberblinker mit knallroter Dahlie ",17,"F2",490,"1.4 G",null,37.5,null,0]
["Batterie ","Boosterblume","Blackboxx","Silberne Schweifkometen mit Verwandlung zu Buketts aus silbernen Crackling-Chrysanthemen",25,"F2",142,"1.4 G",null,7,null,0]
["Batterie ","Böser Engel","Blackboxx","Faszinierende Palmen aus glitzernden Goldfunkenblüten mit Spitzen aus sanftem Crackling, kombiniert mit sehr schönen Schweifkometen aus Rot- und Weißflimmer in der unteren Ebene ",30,"F2",243,"1.4 G",null,15,null,0]
["Batterie ","Das Ding","Blackboxx","Gigantische Weidenbuketts aus leicht blinkenden Goldstaubwedeln mit Cracklingspitzen, hintermalt von Buketts aus tieflauen Sternen mit knallroten Dahlien. Der Aufstieg erfolgt immer mit langen, fetten Blinkschweifkometen in Rot-Weiß und alle Buketts zerlegen mit heftigem Blitzknall",50,"F2",463,"1.4 G",null,29.5,null,0]
["Batterie ","Deja Vu","Blackboxx","Große Silberblinkerbuketts, durchzogen von tiefblauen Sternen und kräftige Rotblinkerbuketts mit tiefblauen Sternen in abwechselnder Schussfolge und immer mit kräftigem Blitzzerlegerknall.",35,"F2",181,"1.4 G",null,10.5,null,0]
["Batterie ","Dock 12","Blackboxx","Gold flimmernde Brokatkronenbuketts mit roten Spitzen und Goldschweif aufsteigend",25,"F2",132,"1.4 G",null,7.5,null,0]
["Batterie ","Eissphinx","Blackboxx","Riesige, Gold flimmernde Brokatkronen, kombiniert mit eiskalten, silbernen Blinksternen",20,"F2",112,"1.4 G",null,9,null,0]
["Batterie ","Erzengel","Blackboxx","Große Titangoldweiden, kombiniert mit kräftigen Rotblinkern, sowie Titangoldweiden, kombiniert mit blauen Päonien. Die Effekte werden jeweils abwechselnd im 5er Fächer geschossen, immer mit Silberblinker-Feuertöpfen in der unteren Ebene",22,"F2",486,"1.4 G",null,34,null,0]
["Batterie ","Gigantika","Blackboxx","Fächerabschuss von jeweils 4 fetten, Schweifkometen in Goldbrokat, Titangold oder Silberflimmer mit Verwandlung zu Königsbrokatkronen mit Rotflimmer, blauer Päonie mit Grünflimmer und Titanpalmenzentrum, sowie Silberblinker mit knallroter Dahlie",18,"F2",296,"1.4 G",null,26.5,null,0]
["Batterie ","Hypnotica","Blackboxx","Gold flimmernde Kokosnusspalmen, umgeben von Rotflimmersternen und mit Schweif aus flimmerndem Titangold",25,"F2",132,"1.4 G",null,7.5,null,0]
["Batterie ","Lila Lena","Blackboxx","Fette, glitzernde Goldstaub-Palmenwedel, umgeben von Lila Blinksternen. Alle Effekte steigen mit langziehenden und fülligen Schweifsternkometen in Bronzeflimmer auf und zerlegen mit lautem Blitzknall ",45,"F2",463,"1.4 G",null,27.5,null,0]
["Batterie ","Mythos","Blackboxx","Prachtvolle Brokat-Schweifkometen zerlegen nach Aufstieg mit lautem Knall zu Mega gigantischen Brokatkronen-Buketts",20,"F2",132,"1.4 G",null,8.5,null,0]
["Batterie ","Nymphis","Blackboxx","Gigantische Titangold-Feuertöpfe in der unteren Ebene, darüber Goldflimmerpalmen mit Purpur Sternen in einer Wolke aus Goldflimmer",20,"F2",227,"1.4 G",null,15.5,null,0]
["Batterie ","Pink Panther","Blackboxx","Päonienbuketts in kräftigem Violett, mit Silberflimmerweide im Zentrum und mit Schweif in Silberflimmer aufsteigend",25,"F2",241,"1.4 G",null,14,null,0]
["Batterie ","Pyropolis","Blackboxx","Riesige Goldflimmerwolke mit Zentrum aus tiefroten Dahlien-Sternen und Goldflimmerschweifkometen in der der unteren Ebene",30,"F2",212,"1.4 G",null,14,null,0]
["Batterie ","Vogelschreck","Blackboxx","16 Schuss-Batterie mit extrem lautstarken Titansalut-Bombetten","20 Sek","F2",250,"1,3 G",null,7.5,null,{"$f":"K28*J28","v":0}]
["Batterie ","Scream","Blackboxx","Silberne Schweifkometen mit lautem Pfeifaufstieg verwandeln zu lautstarkem Crackling",35,"F2",178,"1.4 G",null,13,null,0]
["Batterie ","Titanica","Blackboxx","Silberne Kokosnusspalmen, umgeben von Sternenbuketts in Blau, Orange, Rot, Lemon-Grün und Violett. Immer mit kräftigem Silberschweif aufsteigend und in abwechselnder Farbfolge",50,"F2",463,"1.4 G",null,27,null,0]
["Batterie ","Van Helsing","Blackboxx","Rot blinkende Stroboskopsterne, kombiniert mit tiefblauen Päonienbuketts und mit blauem Komet aufsteigend.",20,"F2",132,"1.4 G",null,8,null,0]
["Batterie ","Virus","Blackboxx","Gigantische, lang ausbreitende Palmen-wedel aus glitzernden Goldfunkenblüten mit Cracklingspitzen, hintermalt von Titangoldweiden mit Goldblinkerzentrum und blauem Kometenaufstieg ",30,"F2",241,"1.4 G",null,14,null,0]
["Batterie ","Xtrem","Blackboxx","X-Fächer aus kräftigen, roten Kometen mit Verwandlung zu tief fallenden, Silber blinkenden Wasserfällen ",12,"F2",486,"1.4 G",null,41,null,0]
["Batterie ","Zorn","Blackboxx","Großer, gefächerter Poppingstern-Feuertopf in Silber, verteilt auf 2 Etagen. Darüber tiefblaue Päonien mit Zentrum aus Silberflimmerweiden. Der Abschuss erfolgt immer im 4er Fächer",18,"F2",355,"1.4 G",null,27.5,null,0]
["Batterie ","Aethra Z-1","Funke","vorbehaltlich Lieferung",null,"F2",490,"1.4 G",null,26,null,0]
["Batterie ","Austrum Z-1","Funke","vorbehaltlich Lieferung",null,"F2",490,"1.4 G",null,26,null,0]
["Batterie ","Duplex Cracker","Funke","vorbehaltlich Lieferung",{"$nulls":7},{"$f":"K37*J37","v":0}]
["Batterie ","Funkenweide","Funke","vorbehaltlich Lieferung",null,"F2",500,"1.3 G",null,28,null,{"$f":"K38*J38","v":0}]
["Batterie ","Funkenweide Blau","Funke","vorbehaltlich Lieferung",null,"F2",500,"1.3 G",null,28,null,0]
["Batterie ","Gold-Blue","Funke","vorbehaltlich Lieferung",null,"F2",104,"1.4 G",null,5,null,0]
["Batterie ","Goldpalm-Blue Z-1","Funke","vorbehaltlich Lieferung",null,"F2",420,"1.4 G",null,22.5,null,0]
["Batterie ","Scala 25 B","Funke","vorbehaltlich Lieferung",null,"F2",500,"1.3 G",null,23.5,null,0]
["Batterie ","Scala S 25 B","Funke","vorbehaltlich Lieferung",null,"F2",204,"1.3 G",null,8.5,null,0]
["Batterie-Verbund","Paranoid","Funke","vorbehaltlich Lieferung",null,"F2",2900,"1.3 G",null,149,null,{"$f":"K44*J44","v":0}]
["Batterie-Verbund","Supernaut 1","Funke","vorbehaltlich Lieferung",null,"F2",3342.1,"1.3 G",null,209,null,0]
["Batterie-Verbund","Manchester Marvel","Broekhoff",null,171,"F2",2446,"1.4G",null,155,null,{"$f":"K46*J46","v":0}]
["Batterie-Verbund","Pyro-Spektakel Level 1","Blackboxx",null,100,"F2",961,"1.4G",null,95,null,{"$f":"K47*J47","v":0}]
["Batterie-Verbund","Pyro-Spektakel Level 4","Blackboxx",null,120,"F2",1379,"1.4 G",null,145,null,{"$f":"K48*J48","v":0}]
["Batterie-Verbund","Pyro-Spektakel Level 8","Blackboxx",null,160,"F2",1996,"1.4 G",null,215,null,{"$f":"K49*J49","v":0}]
["Bengalo","Bengaltopf XXL Blau","Blackboxx","Blaue Bengalflamme",60,"T1",102,"1.4 S",null,3,null,0]
["Bengalo","Bengaltopf XXL Gelb","Blackboxx","Gelbe Bengalflamme",60,"T1",72.099999999999994,"1.4 S",null,3,null,0]
["Bengalo","Bengaltopf XXL Grün","Blackboxx","Grüne Bengalflamme",60,"T1",97,"1.4 S",null,3,null,0]
["Bengalo","Bengaltopf XXL Purpur","Blackboxx","Lila Bengalflamme",60,"T1",66.900000000000006,"1.4 S",null,3,null,0]
["Bengalo","Bengaltopf XXL Rot","Blackboxx","Rote Bengalflamme",60,"T1",80.099999999999994,"1.4 S",null,3,null,0]
["Bengalo","Strobolobo","Blackboxx","Weiße Blinkflamme",40,"F2",16,"1.4 S",null,4,null,0]
["Bengalo","Ultralux Grün","Blackboxx","Sehr helle grüneFlamme",30,"T1",175,"1.4 S",null,5.5,null,0]
["Bengalo","Ultralux Rot","Blackboxx","Sehr helle rote Flamme",30,"T1",175,"1.4 S",null,5.5,null,0]
["Fontäne","Fantasiafontäne","Blackboxx","Kern aus Silber, darüber Goldfunkenblüten,mit blauer Basis",60,"F2",300,"1.4 G",null,9.5,null,0]
["Fontäne","Novafontäne NO. 2","Blackboxx","Platzende Goldfunken blaue Sterne",20,"F2",50,"1.4 G",null,3,null,{"$f":"K59*J59","v":0}]
["Fontäne","Novafontäne NO. 3","Blackboxx","Platzende  Goldfunken Rote Sterne",20,"F2",49.5,"1.4 G",null,3,null,0]
["Fontäne","Luftheuler","Funke","vorbehaltlich Lieferung",null,"F2",15,"1.4 G","Packung a 10 Stück",1.5,null,0]
["Fontäne","Luftheuler Silber","Funke","vorbehaltlich Lieferung",null,"F2",17,"1.4 G","Packung a 10 Stück",1.5,null,0]
["Knallkörper","Rapiator 300","Blackboxx","1,00 Meter 300 Knaller",10,"F2",45,"1.4 S",null,4.5,null,0]
["Knallkörper","Rapiator 500","Blackboxx","1,70 Meter 500 Knaller",15,"F2",75,"1.4 S",null,6,null,0]
["Knallkörper","Chinaböller D","Funke","vorbehaltlich Lieferung",null,"P1",18,"1.4 G","Packung a 4 Stück",2,null,0]
["Knallkörper","Knallfrosch C","Funke","vorbehaltlich Lieferung",null,"F2",10,"1.4G","Packung a 4 Stück",1.5,null,0]
["Knallkörper","Knallfrosch D","Funke","vorbehaltlich Lieferung",null,"F2",12,"1.4 G","Packung a 4 Stück",2,null,{"$f":"K67*J67","v":0}]
["Bodenwirbel","Tornado Wirbel","Funke","vorbehaltlich Lieferung",null,"F2",10.5,"1.4G","Packung a 4 Stück",4.5,null,0]
["Lichterlanzen","Lanzenlichter Gelb","Blackboxx","Lanzenlichter Gelb",60,"T1",7.6,"1.4 S",null,9.5,null,0]
["Lichterlanzen","Lanzenlichter Gold","Blackboxx","Lanzenlichter Gold",60,"T1",7.2,"1.4 S",null,9.5,null,0]
["Lichterlanzen","Lanzenlichter Rot","Blackboxx","Lanzenlichter Rot",60,"T1",7.6,"1.4 S","5er Packung",9.5,null,0]
["Rakete","Himmelsstürmer","Funke","13 Stück Himmelsstürmer Raketen,  vorbehaltlich Lieferung",null,"F2",20,"1.4G","13er Pack",37,null,{"$f":"K72*J72","v":0}]
["Rakete","Kometenschauer","Funke","vorbehaltlich Lieferung",null,"F2",120,"1.4 G","6 Stück in der Packung",17,null,{"$f":"K73*J73","v":0}]
["Rauch","Rauchfackeln","Blackboxx","Rauch Blau",60,"T1",20,"1.4 S","5er Packung",9.5,null,0]
["Rauch","Rauchfackeln","Blackboxx","Rauch Gelb",60,"T1",20,"1.4 S","5er Packung",9.5,null,0]
["Rauch","Rauchfackeln","Blackboxx","Rauch Grün",60,"T1",20,"1.4 S","5er Packung",9.5,null,0]
["Rauch","Rauchfackeln","Blackboxx","Rauch Orange",60,"T1",20,"1.4 S","5er Packung",9.5,null,0]
["Rauch","Rauchfackeln","Blackboxx","RauchPurpur",60,"T1",20,"1.4 S","5er Packung",9.5,null,0]
["Rauch","Rauchfackeln","Blackboxx","Rauch Weiß",60,"T1",20,"1.4 S","5er Packung",9.5,null,0]
["Rauch","Rauchfackeln","Blackboxx","Raucht Schwarz",60,"T1",20,"1.4 S","5er Packung",9.5,null,0]
["Vulkan","Azzuro","Zink","Gold mit blauen Sternen",60,"F3",400,"1.4 G",null,9,null,0]
["Vulkan","Magic Light","Zink","Gold & Blinksterne",60,"F3",400,"1.4 G",null,9,null,0]
["Vulkan","Metal Pink","Zink","Silber pinke Sterne",60,"F3",400,"1.4 G",null,9,null,0]
["Vulkan","No 1","Zink","Gold Silber",50,"F2",250,"1.4 G",null,8.5,null,0]
["Vulkan","No 2","Zink","Gold & Blinksterne",50,"F2",250,"1.4 G",null,8.5,null,0]
["Vulkan","No 8","Zink","Silber rote Sterne",50,"F2",250,"1.4 G",null,8.5,null,0]
["Vulkan","No 9","Zink","Gold Grün",50,"F2",250,"1.4 G",null,8.5,null,0]
[]
[null,null,null,"F3 nur verkäuflich gegen Vorlage einer Erlaubnis nach §27 SprengG! ",{"$nulls":6},"Bestellung gesamt:",{"$f":"SUM(L4:L87)","v":0},"inkl. 19% MwSt."]
[]
[{"$nulls":9},"Vorname:"]
[{"$nulls":9},"Nachname:"]
[]
[{"$nulls":9},"Wir bitten um Verständnis, das Artikel aufgrund hoher Nachfrage bereits nach kürzester Zeit ausverkauft sein können."]